bitfinex-derivatives/quotes_BTCF0:USTF0_20250924
["timestamp","ask_amount","ask_price","bid_price","bid_amount"]
[1758742309198,0.9063246,113520.0,113510.0,0.63575411]
[1758742309399,1.25849597,113520.0,113510.0,0.63575411]
[1758742310493,0.81828,113520.0,113510.0,0.63575411]
[1758742310698,0.1305678,113530.0,113520.0,0.1239445]
[1758742310893,0.9272478,113530.0,113520.0,0.47611587]
[1758742311092,1.27941917,113530.0,113520.0,0.47611587]
[1758742311795,1.28441917,113530.0,113520.0,0.47611587]
[1758742311997,1.28441917,113530.0,113520.0,0.48473245]
[1758742313101,1.28441917,113530.0,113520.0,0.47611587]
[1758742313801,1.28641917,113530.0,113520.0,0.47611587]
[1758742314007,0.48973917,113530.0,113520.0,0.47611587]
[1758742314503,1.28629917,113530.0,113520.0,0.47611587]
[1758742316204,0.9341278,113530.0,113520.0,0.47611587]
[1758742316404,1.28629917,113530.0,113520.0,0.47611587]
[1758742320208,0.48973917,113530.0,113520.0,0.56420219]
[1758742320397,0.48973917,113530.0,113520.0,0.91637356]
[1758742320398,1.26408917,113530.0,113520.0,0.91637356]
[1758742320608,1.28555917,113530.0,113520.0,0.56420219]
[1758742321408,1.28555917,113530.0,113520.0,0.21203082]
[1758742321706,1.28555917,113530.0,113520.0,0.56420219]
[1758742323207,1.28555917,113530.0,113520.0,0.21203082]
[1758742323511,0.1095147,113520.0,113510.0,0.1075286]
[1758742323704,0.81385744,113520.0,113510.0,0.1075286]
[1758742323898,0.81385744,113520.0,113510.0,0.19561492]
[1758742324608,0.461558,113520.0,113510.0,0.19561492]
[1758742326512,0.461558,113520.0,113510.0,0.1075286]
[1758742326708,0.472338,113520.0,113510.0,0.1075286]
[1758742328711,0.461558,113520.0,113510.0,0.1075286]
[1758742332419,0.472338,113520.0,113510.0,0.0935686]
[1758742332913,0.1095223,113510.0,113500.0,0.03718]
[1758742333113,1.2580056,113510.0,113500.0,0.03718]
[1758742333310,1.2580056,113510.0,113500.0,0.12527408]
[1758742333711,1.2580056,113510.0,113500.0,0.03718]
[1758742334016,1.2580056,113510.0,113500.0,0.02321]
[1758742335022,0.10953,113500.0,113490.0,0.03718]
[1758742335315,0.4535733,113500.0,113490.0,0.03718]
[1758742335612,0.4535733,113500.0,113490.0,0.12528184]
[1758742335817,0.46253767,113500.0,113490.0,0.12528184]
[1758742336220,0.46253767,113500.0,113490.0,0.12828184]
[1758742336609,0.46253767,113500.0,113490.0,0.13928184]
[1758742336819,0.10153,113500.0,113490.0,0.22734954]
[1758742337018,0.4535733,113500.0,113490.0,0.22734954]
[1758742337219,0.4535733,113500.0,113490.0,0.13928184]
[1758742342124,0.8643533,113500.0,113490.0,0.014]
[1758742349422,0.8643533,113500.0,113490.0,0.03607]
[1758742349623,0.8643533,113500.0,113490.0,0.014]
[1758742351630,1.6617133,113500.0,113490.0,0.03607]
[1758742351833,1.29889,113500.0,113490.0,0.04869]
[1758742352136,1.6509333,113500.0,113490.0,0.04869]
[1758742352824,1.2509733,113500.0,113490.0,0.04869]
[1758742353020,1.2509733,113500.0,113490.0,0.014]
[1758742357340,1.2509733,113500.0,113490.0,0.011]
[1758742357530,1.6030166,113500.0,113490.0,0.012]
[1758742357731,0.1099533,113470.0,113460.0,0.03473]
[1758742357936,0.1099611,113460.0,113450.0,0.03479179]
[1758742358234,0.4620044,113460.0,113450.0,0.12290139]
[1758742358434,0.4620044,113460.0,113450.0,0.19345928]
[1758742358736,0.4610044,113460.0,113450.0,0.19345928]
[1758742359434,0.4570044,113460.0,113450.0,0.20545928]
[1758742359839,0.1049611,113460.0,113450.0,0.20545928]
[1758742360130,0.4570044,113460.0,113450.0,0.20545928]
[1758742360836,0.4570044,113460.0,113450.0,0.20945928]
[1758742361736,0.4690044,113460.0,113450.0,0.19745928]
[1758742362728,0.4690044,113460.0,113450.0,0.12690139]
[1758742362939,0.4690044,113460.0,113450.0,0.1267996]
[1758742363130,0.4690044,113460.0,113450.0,0.1247996]
[1758742364839,0.4690044,113460.0,113450.0,0.2128985]
[1758742367642,1.2670444,113460.0,113450.0,0.2128985]
[1758742368343,0.4690044,113460.0,113450.0,0.2128985]
[1758742368543,1.2670844,113460.0,113450.0,0.2128985]
[1758742368837,0.9150411,113460.0,113450.0,0.2128985]
[1758742369044,1.2670844,113460.0,113450.0,0.2128985]
[1758742370540,0.4690044,113460.0,113450.0,0.2128985]
[1758742370739,1.2670044,113460.0,113450.0,0.2128985]
[1758742371847,1.2670044,113460.0,113450.0,0.1247996]
[1758742372147,1.2670044,113460.0,113450.0,0.2128984]
[1758742372647,1.2670044,113460.0,113450.0,0.1247996]
[1758742373036,1.2670044,113460.0,113450.0,0.2128985]
[1758742374145,1.27572188,113460.0,113450.0,0.2128985]
[1758742374343,1.27572188,113460.0,113450.0,0.1247996]
[1758742375143,1.2670044,113460.0,113450.0,0.2128983]
[1758742375540,0.9149611,113460.0,113450.0,0.2128983]
[1758742375840,1.2670044,113460.0,113450.0,0.2128983]
[1758742376040,0.9149611,113460.0,113450.0,0.2128983]
[1758742376242,0.4690044,113460.0,113450.0,0.2128983]
[1758742376441,1.2670044,113460.0,113450.0,0.2128983]
[1758742376646,0.9149611,113460.0,113450.0,0.5649416]
[1758742376942,1.2670044,113460.0,113450.0,0.2128983]
[1758742377949,0.9149611,113460.0,113450.0,0.2128983]
[1758742378144,0.012,113460.0,113450.0,0.9649416]
[1758742378454,0.81012,113460.0,113450.0,0.9649416]
[1758742378832,0.012,113460.0,113450.0,0.9649416]
[1758742379036,0.9082395,113470.0,113460.0,0.1229111]
[1758742379238,0.9082395,113470.0,113460.0,0.4749544]
[1758742379442,0.1101195,113470.0,113460.0,0.4749544]
[1758742379745,0.9082395,113470.0,113460.0,0.211044]
[1758742380450,1.2692828,113470.0,113460.0,0.211044]
[1758742384545,1.26957101,113470.0,113460.0,0.211044]
[1758742387953,1.26957101,113470.0,113460.0,0.56337551]
[1758742389156,1.26954376,113470.0,113460.0,0.56334826]
[1758742390660,1.26954376,113470.0,113460.0,0.1229529]
[1758742391855,1.70993362,113470.0,113450.0,0.1007134]
[1758742392060,0.72650852,113460.0,113450.0,0.1236834]
[1758742392254,0.72650852,113460.0,113450.0,0.2118163]
[1758742392449,0.72650852,113460.0,113450.0,0.56412056]
[1758742392656,0.37420426,113460.0,113450.0,0.2118163]
[1758742392858,0.81459962,113460.0,113450.0,0.2118163]
[1758742393054,0.81459962,113460.0,113450.0,0.1111029]
[1758742393055,0.82537962,113460.0,113450.0,0.1111029]
[1758742393471,0.82537962,113460.0,113450.0,0.1171029]
[1758742393673,0.82537962,113460.0,113450.0,0.02897]
[1758742394075,0.82537962,113460.0,113450.0,0.006]
[1758742395074,0.82537962,113460.0,113450.0,0.008]
[1758742395772,0.82537962,113460.0,113450.0,0.006]
[1758742396070,0.82537962,113460.0,113450.0,0.008]
[1758742399379,0.82537962,113460.0,113450.0,0.03097]
[1758742400579,0.82537962,113460.0,113450.0,0.008]
[1758742401876,1.61231962,113460.0,113450.0,0.04263]
[1758742402178,1.61231962,113460.0,113450.0,0.02983]
[1758742403285,1.61231962,113460.0,113450.0,0.04263]
[1758742403782,1.96462388,113460.0,113450.0,0.008]
[1758742404784,1.61231962,113460.0,113450.0,0.008]
[1758742405276,1.61231962,113460.0,113450.0,0.002]
[1758742405473,0.0880988,113450.0,113440.0,0.0881065]
[1758742405678,0.46302306,113450.0,113440.0,0.1227365]
[1758742406677,0.46302306,113450.0,113440.0,0.03463]
[1758742407086,0.46302306,113450.0,113440.0,0.1227365]
[1758742407285,0.46302306,113450.0,113440.0,0.1287365]
[1758742407477,0.46302306,113450.0,113440.0,0.1307365]
[1758742408485,0.46302306,113450.0,113440.0,0.04263]
[1758742409087,0.46302306,113450.0,113440.0,0.1307366]
[1758742414495,1.26066306,113450.0,113440.0,0.1307366]
[1758742414792,1.26066306,113450.0,113440.0,0.04263]
[1758742414987,1.26066306,113450.0,113440.0,0.1307366]
[1758742417494,0.46302306,113450.0,113440.0,0.1307366]
[1758742417693,1.26058306,113450.0,113440.0,0.1307366]
[1758742419598,0.9082788,113450.0,113440.0,0.1307366]
[1758742419792,1.26058306,113450.0,113440.0,0.1307366]
[1758742420092,1.26046306,113450.0,113440.0,0.1307366]
[1758742422691,1.26046306,113450.0,113440.0,0.48304086]
[1758742422891,1.26046306,113450.0,113440.0,0.1307366]
[1758742426604,0.46302306,113450.0,113440.0,0.5711893]
[1758742426797,1.26030306,113450.0,113440.0,0.5711893]
[1758742427207,0.46302306,113450.0,113440.0,1.32349356]
[1758742427398,1.26042306,113450.0,113440.0,1.32349356]
[1758742428101,1.26042306,113450.0,113440.0,0.61888504]
[1758742428304,1.26042306,113450.0,113440.0,1.32349356]
[1758742429508,0.46302306,113450.0,113440.0,1.32349356]
[1758742429707,1.26038306,113450.0,113440.0,1.32349356]
[1758742433512,0.46302306,113450.0,113440.0,1.32349356]
[1758742433703,1.26022306,113450.0,113440.0,0.61888504]
[1758742433908,1.26022306,113450.0,113440.0,0.9711893]
[1758742434413,0.46302306,113450.0,113440.0,0.9711893]
[1758742434718,1.26018306,113450.0,113440.0,0.9711893]
[1758742435712,0.9078788,113450.0,113440.0,0.9711893]
[1758742435914,1.26018306,113450.0,113440.0,0.9711893]
[1758742436306,1.26018306,113450.0,113440.0,1.32349356]
[1758742436506,0.9078788,113450.0,113440.0,1.32349356]
[1758742436814,1.26018306,113450.0,113440.0,0.9711893]
[1758742440314,1.26018306,113450.0,113440.0,0.61888554]
[1758742440612,1.26018306,113450.0,113440.0,0.9711898]
[1758742441410,0.46302306,113450.0,113440.0,0.9711898]
[1758742441614,1.26034306,113450.0,113440.0,0.9711898]
[1758742444616,1.26045863,113450.0,113440.0,0.61888554]
[1758742447321,0.9080388,113450.0,113440.0,0.61888554]
[1758742447510,0.0880988,113450.0,113440.0,0.97130537]
[1758742447710,0.9077988,113450.0,113440.0,0.97130537]
[1758742451523,0.1102788,113450.0,113440.0,0.97130537]
[1758742451722,0.8621988,113450.0,113440.0,0.97130537]
[1758742457320,0.1102788,113450.0,113440.0,0.97130537]
[1758742457627,0.8722788,113450.0,113440.0,0.97130537]
[1758742464831,0.1102788,113450.0,113440.0,0.97130537]
[1758742465032,0.8697988,113450.0,113440.0,0.97130537]
[1758742465423,0.9073188,113450.0,113440.0,0.97130537]
[1758742467036,0.1106111,113460.0,113450.0,0.1242293]
[1758742467219,0.8213711,113460.0,113450.0,0.1242293]
[1758742467625,0.8213711,113460.0,113450.0,0.21237774]
[1758742468230,1.17379093,113460.0,113450.0,0.21237774]
[1758742468432,0.46303093,113460.0,113450.0,0.21237774]
[1758742468632,1.26007093,113460.0,113450.0,0.21237774]
[1758742470532,0.9076511,113460.0,113450.0,0.21237774]
[1758742470733,1.26007093,113460.0,113450.0,0.21237774]
[1758742471934,0.9076511,113460.0,113450.0,0.21237774]
[1758742472934,1.26007093,113460.0,113450.0,0.21237774]
[1758742473431,0.9076511,113460.0,113450.0,0.21237774]
[1758742473635,1.26007093,113460.0,113450.0,0.21237774]
[1758742478435,0.46303093,113460.0,113450.0,0.21237774]
[1758742478637,0.1106111,113460.0,113450.0,0.56479757]
[1758742478935,0.9076511,113460.0,113450.0,0.56479757]
[1758742479234,0.9076511,113460.0,113450.0,0.21237774]
[1758742479435,0.1106111,113460.0,113450.0,0.21237774]
[1758742479624,0.9076511,113460.0,113450.0,0.21237774]
[1758742480937,1.26007093,113460.0,113450.0,0.21237774]
[1758742481136,0.46303093,113460.0,113450.0,0.21237774]
[1758742481334,1.26007093,113460.0,113450.0,0.21237774]
[1758742483242,0.9146511,113460.0,113450.0,0.21237774]
[1758742484643,0.1176111,113460.0,113450.0,0.21237774]
[1758742484840,0.1176116,113460.0,113450.0,0.56479757]
[1758742485044,0.7627716,113460.0,113450.0,0.56479757]
[1758742485347,0.9146516,113460.0,113450.0,0.56479757]
[1758742485542,0.1176116,113460.0,113450.0,0.56479757]
[1758742485842,0.80404,113460.0,113450.0,0.56479757]
[1758742486235,0.8921316,113460.0,113450.0,0.56479757]
[1758742486436,0.0950916,113460.0,113450.0,0.56479757]
[1758742486639,0.9146516,113460.0,113450.0,0.56479757]
[1758742487654,0.9146516,113460.0,113450.0,0.21237774]
[1758742489850,0.9146516,113460.0,113450.0,0.12427844]
[1758742490256,0.9146516,113460.0,113450.0,0.21237784]
[1758742492758,0.9146116,113460.0,113450.0,0.21237784]
[1758742495461,0.9146116,113460.0,113450.0,0.56479767]
[1758742500162,0.9146116,113460.0,113450.0,0.21237784]
[1758742500367,0.9146116,113460.0,113450.0,0.56479767]
[1758742502064,1.26703143,113460.0,113450.0,0.12427844]
[1758742502261,1.27781143,113460.0,113450.0,0.02235]
[1758742502765,0.1093194,113450.0,113440.0,0.1219721]
[1758742502966,0.46173923,113450.0,113440.0,0.03387]
[1758742503271,0.46173923,113450.0,113440.0,0.12201067]
[1758742503672,0.46173923,113450.0,113440.0,0.21011777]
[1758742505368,0.46373923,113450.0,113440.0,0.21011777]
[1758742506070,0.1113194,113450.0,113440.0,0.21011777]
[1758742506369,0.1113194,113450.0,113430.0,0.46900719]
[1758742506370,0.1093271,113440.0,113430.0,0.00937633]
[1758742506572,1.61147822,113440.0,113430.0,0.00937633]
[1758742506871,3.11147822,113440.0,113430.0,0.00937633]
[1758742507758,3.46407378,113440.0,113430.0,0.00937633]
[1758742508064,3.86407378,113440.0,113430.0,0.00937633]
[1758742508264,3.51147822,113440.0,113430.0,0.00937633]
[1758742508465,3.86407378,113440.0,113430.0,0.00937633]
[1758742511865,2.36407378,113440.0,113430.0,0.00937633]
[1758742513373,2.36407378,113440.0,113430.0,3e-08]
[1758742513973,0.46194596,113410.0,113400.0,0.03506]
[1758742514176,1.25898596,113410.0,113400.0,0.03506]
[1758742514472,1.25898596,113410.0,113400.0,0.12321621]
[1758742515373,1.25998596,113410.0,113400.0,0.14521621]
[1758742515772,1.25998596,113410.0,113400.0,0.21675008]
[1758742519774,1.26896488,113410.0,113400.0,0.21675008]
[1758742520370,1.27588488,113410.0,113400.0,0.18169008]
[1758742520575,1.27588488,113410.0,113400.0,0.11015621]
[1758742520868,0.92328932,113410.0,113400.0,0.13243621]
[1758742521069,1.27588488,113410.0,113400.0,0.13243621]
[1758742521675,1.27488488,113410.0,113400.0,0.13043621]
[1758742522375,1.26590596,113410.0,113400.0,0.12443621]
[1758742523372,0.9063904,113410.0,113400.0,0.13726621]
[1758742523572,1.25898596,113410.0,113400.0,0.22540431]
[1758742524274,1.25898596,113410.0,113400.0,0.13726621]
[1758742528182,1.25898596,113410.0,113400.0,0.22540431]
[1758742529084,1.25898596,113410.0,113400.0,0.13726621]
[1758742529486,0.9063904,113410.0,113400.0,0.13726621]
[1758742529684,1.25898596,113410.0,113400.0,0.57799997]
[1758742530286,1.25898596,113410.0,113400.0,0.13726621]
[1758742530686,1.25898596,113410.0,113400.0,0.014]
[1758742530888,1.25898596,113410.0,113400.0,0.03628]
[1758742532076,1.61158152,113410.0,113400.0,0.014]
[1758742532483,1.25898596,113410.0,113400.0,0.014]
[1758742533185,1.25898596,113410.0,113400.0,0.03628]
[1758742539283,1.25898596,113410.0,113400.0,0.014]
[1758742539485,2.01158152,113410.0,113400.0,0.014]
[1758742539993,1.3063904,113410.0,113400.0,0.014]
[1758742540290,2.01158152,113410.0,113400.0,0.014]
[1758742540491,1.61158152,113410.0,113400.0,0.014]
[1758742540690,2.01158152,113410.0,113400.0,0.011]
[1758742540894,2.01158152,113410.0,113400.0,0.013]
[1758742541892,1.61158152,113410.0,113400.0,0.013]
[1758742542193,1.61158152,113410.0,113400.0,0.002]
[1758742542492,1.61158152,113410.0,113400.0,0.008]
[1758742544285,2.01158152,113410.0,113400.0,0.008]
[1758742545085,2.03839956,113410.0,113400.0,0.008]
[1758742545893,2.03839956,113410.0,113370.0,0.08322897]
[1758742545894,0.0881536,113380.0,113370.0,0.08322897]
[1758742546189,1.61351472,113380.0,113370.0,0.12444953]
[1758742546586,1.61351472,113380.0,113370.0,0.03627]
[1758742546786,0.9083236,113380.0,113370.0,0.03627]
[1758742546981,1.61351472,113380.0,113370.0,0.03627]
[1758742547590,1.62225694,113380.0,113370.0,0.03627]
[1758742548294,0.91706582,113380.0,113370.0,0.1244313]
[1758742548499,0.91706582,113380.0,113370.0,0.47702686]
[1758742548702,1.26091916,113380.0,113370.0,0.47702686]
[1758742549300,1.26091916,113380.0,113370.0,0.48402686]
[1758742549489,1.26091916,113380.0,113370.0,0.04327]
[1758742550398,1.26091916,113380.0,113370.0,0.39586556]
[1758742550599,1.26191916,113380.0,113370.0,0.40086556]
[1758742551096,1.27067494,113380.0,113370.0,0.40086556]
[1758742551398,1.26191916,113380.0,113370.0,0.40086556]
[1758742551601,1.26191916,113380.0,113370.0,0.04827]
[1758742551791,0.46443916,113380.0,113370.0,0.40086556]
[1758742551992,1.26211916,113380.0,113370.0,0.40086556]
[1758742552690,1.26211916,113380.0,113370.0,0.39386556]
[1758742552890,1.26211916,113380.0,113370.0,0.39986556]
[1758742553300,1.61471472,113380.0,113370.0,0.04727]
[1758742553502,1.62163472,113380.0,113370.0,0.03328]
[1758742553701,1.62163472,113380.0,113370.0,0.011]
[1758742554104,1.69366077,113380.0,113370.0,0.03212]
[1758742554503,1.68674077,113380.0,113370.0,0.04603]
[1758742554702,1.68674077,113380.0,113370.0,0.04503]
[1758742555504,1.69552483,113380.0,113370.0,0.04503]
[1758742555707,0.99033371,113380.0,113370.0,0.04503]
[1758742555898,1.69552483,113380.0,113370.0,0.04503]
[1758742556299,1.70244483,113380.0,113370.0,0.01]
[1758742556701,1.70144483,113380.0,113370.0,0.008]
[1758742556901,0.99625371,113380.0,113370.0,0.02912]
[1758742557205,1.70144483,113380.0,113370.0,0.02412]
[1758742558403,1.69452483,113380.0,113370.0,0.03803]
[1758742560103,1.68574077,113380.0,113370.0,0.03803]
[1758742560308,0.18286965,113380.0,113370.0,0.03803]
[1758742560609,1.68566077,113380.0,113370.0,0.03803]
[1758742561110,1.68566077,113380.0,113370.0,0.39062556]
[1758742561310,1.33306521,113380.0,113370.0,0.47878686]
[1758742561706,0.46343916,113380.0,113370.0,0.47878686]
[1758742561909,1.26103916,113380.0,113370.0,0.47878686]
[1758742562108,1.26103916,113380.0,113370.0,0.39062556]
[1758742563204,1.26103916,113380.0,113370.0,0.47878686]
[1758742563802,1.21969668,113380.0,113370.0,0.47878686]
[1758742564712,1.21969668,113380.0,113370.0,0.39062556]
[1758742565709,1.21969668,113380.0,113370.0,0.47878686]
[1758742566623,1.21997897,113380.0,113370.0,0.1261913]
[1758742567610,0.06950112,113380.0,113370.0,0.47906915]
[1758742567816,0.86702112,113380.0,113370.0,0.47906915]
[1758742568316,0.86702112,113380.0,113370.0,0.1261913]
[1758742568715,1.21989897,113380.0,113370.0,0.1261913]
[1758742571213,0.86698112,113380.0,113370.0,0.56727201]
[1758742571816,0.06950112,113380.0,113370.0,0.56727201]
[1758742572019,0.86698112,113380.0,113370.0,0.56727201]
[1758742572413,0.06950112,113380.0,113370.0,0.56727201]
[1758742572612,0.86698112,113380.0,113370.0,0.56727201]
[1758742579025,0.06950112,113380.0,113370.0,0.56727201]
[1758742579228,0.86702112,113380.0,113370.0,0.56727201]
[1758742580429,0.86702112,113380.0,113370.0,0.21439416]
[1758742580727,0.86702112,113380.0,113370.0,0.56727201]
[1758742588640,0.06950112,113380.0,113370.0,0.56727201]
[1758742588840,0.86710112,113380.0,113370.0,0.96727201]
[1758742598653,0.8856735,113380.0,113370.0,0.56727201]
[1758742598847,0.7856735,113380.0,113370.0,0.56727201]
[1758742599151,0.8077335,113380.0,113370.0,0.56727201]
[1758742599850,0.895887,113380.0,113370.0,0.56727201]
[1758742603751,0.1102112,113390.0,113380.0,0.1008835]
[1758742603947,0.7009312,113390.0,113380.0,0.47566135]
[1758742604443,0.7009312,113390.0,113380.0,0.56386421]
[1758742605154,0.7049312,113390.0,113380.0,0.56486421]
[1758742606355,0.1142112,113390.0,113380.0,0.56486421]
[1758742606553,0.9117712,113390.0,113380.0,0.56486421]
[1758742606756,0.1142112,113390.0,113380.0,0.56486421]
[1758742606951,0.9117712,113390.0,113380.0,0.56486421]
[1758742608448,0.9117312,113390.0,113380.0,0.56486421]
[1758742608649,0.1142112,113390.0,113380.0,0.56486421]
[1758742608852,0.9119312,113390.0,113380.0,0.56486421]
[1758742609152,0.80172,113390.0,113380.0,0.56486421]
[1758742609356,0.82297,113390.0,113380.0,0.56486421]
[1758742609658,0.80172,113390.0,113380.0,0.56486421]
[1758742610455,0.80168,113390.0,113380.0,0.56486421]
[1758742611156,0.1133957,113390.0,113380.0,0.61198646]
[1758742611357,0.1133957,113390.0,113380.0,0.96486431]
[1758742615556,0.1133957,113390.0,113380.0,0.52383286]
[1758742615754,0.87705355,113390.0,113380.0,0.001]
[1758742616857,0.0881614,113370.0,113360.0,0.01283]
[1758742617060,0.0881614,113370.0,113360.0,0.02116]
[1758742617061,1.26712925,113370.0,113360.0,0.02116]
[1758742617358,0.1094192,113360.0,113350.0,0.13026884]
[1758742617558,0.1094192,113360.0,113350.0,0.28836427]
[1758742617760,0.1094192,113360.0,113350.0,0.37655935]
[1758742618660,0.1054192,113360.0,113350.0,0.37655935]
[1758742618861,0.0994192,113360.0,113350.0,0.37655935]
[1758742619552,0.0994192,113360.0,113350.0,0.38855935]
[1758742619851,0.0994192,113360.0,113350.0,0.23046392]
[1758742620552,0.0994192,113360.0,113350.0,0.14228782]
[1758742620753,0.1004192,113360.0,113350.0,0.23446472]
[1758742620953,0.1004192,113360.0,113350.0,0.14628782]
[1758742621555,0.1004192,113360.0,113350.0,0.23446472]
[1758742627868,0.1004192,113360.0,113350.0,0.58734257]
[1758742628568,0.1004192,113360.0,113350.0,0.58740589]
[1758742629262,0.0885884,113360.0,113350.0,0.58740589]
[1758742629966,0.0004192,113360.0,113350.0,0.58740589]
[1758742630663,0.1001683,113360.0,113350.0,0.58740589]
[1758742631568,0.0119992,113360.0,113350.0,0.58740589]
[1758742631970,0.1001682,113360.0,113350.0,0.58740589]
[1758742632371,0.0119992,113360.0,113350.0,0.58740589]
[1758742632563,0.0004192,113360.0,113350.0,0.58740589]
[1758742633066,0.0885881,113360.0,113350.0,0.58740589]
[1758742633269,0.1001681,113360.0,113350.0,0.58740589]
[1758742635275,0.1001681,113360.0,113350.0,0.23446472]
[1758742635577,0.1001681,113360.0,113350.0,0.58740589]
[1758742637474,0.0119992,113360.0,113350.0,0.6573841]
[1758742637773,1.23930777,113370.0,113360.0,0.1240488]
[1758742637975,1.23930777,113370.0,113360.0,0.47698997]
[1758742639475,1.23930777,113370.0,113360.0,0.47998997]
[1758742639770,0.35394117,113370.0,113360.0,0.57020061]
[1758742639969,0.7992,113370.0,113360.0,0.92314178]
[1758742640161,0.887361,113370.0,113360.0,0.92314178]
[1758742640365,0.44210217,113370.0,113360.0,0.92314178]
[1758742640574,1.24022217,113370.0,113360.0,0.92314178]
[1758742641362,1.24022217,113370.0,113360.0,0.57020061]
[1758742646980,0.887281,113370.0,113360.0,0.92314178]
[1758742647279,1.24006217,113370.0,113360.0,0.92314178]
[1758742647475,0.887121,113370.0,113360.0,0.92314178]
[1758742648377,1.24006217,113370.0,113360.0,0.92314178]
[1758742648679,0.887121,113370.0,113360.0,0.92314178]
[1758742649474,1.24006217,113370.0,113360.0,0.92314178]
[1758742649778,0.887121,113370.0,113360.0,0.92314178]
[1758742650180,0.089161,113370.0,113360.0,0.92314178]
[1758742650374,0.887401,113370.0,113360.0,0.92314178]
[1758742650775,0.0881597,113380.0,113370.0,0.124041]
[1758742650975,0.8865997,113380.0,113370.0,0.47698217]
[1758742651275,0.8865933,113380.0,113370.0,0.47698217]
[1758742651468,0.8865933,113380.0,113370.0,0.56518503]
[1758742651979,1.23953447,113380.0,113370.0,0.56518503]
[1758742652872,1.24353447,113380.0,113370.0,0.56518503]
[1758742653681,1.24377447,113380.0,113370.0,0.56718503]
[1758742658085,0.8908333,113380.0,113370.0,0.56718503]
[1758742658285,1.24377447,113380.0,113370.0,0.56718503]
[1758742659790,0.8908333,113380.0,113370.0,0.56718503]
[1758742659984,1.24377447,113380.0,113370.0,0.56718503]
[1758742666596,0.8908333,113380.0,113370.0,0.56718503]
[1758742666787,1.24377447,113380.0,113370.0,0.56718503]
[1758742667790,1.24377447,113380.0,113370.0,0.47902403]
[1758742668300,1.24377447,113380.0,113370.0,0.12608286]
[1758742668596,1.24377447,113380.0,113370.0,0.47902403]
[1758742669496,1.24377447,113380.0,113370.0,0.56718503]
[1758742670289,1.24377447,113380.0,113370.0,0.47902403]
[1758742674698,0.44509447,113380.0,113370.0,0.56718513]
[1758742674906,1.24301447,113380.0,113370.0,0.56718513]
[1758742677311,1.24301447,113380.0,113370.0,0.12608286]
[1758742677510,1.24301447,113380.0,113370.0,0.47902403]
[1758742678912,1.24301447,113380.0,113370.0,0.56718513]
[1758742679310,0.8900733,113380.0,113370.0,0.56718513]
[1758742679707,1.24301447,113380.0,113370.0,0.56718513]
[1758742681612,1.59595564,113380.0,113370.0,0.12608286]
[1758742681909,2.34889681,113380.0,113370.0,0.002]
[1758742682106,0.0881611,113370.0,113360.0,0.01372]
[1758742682299,0.79404344,113370.0,113360.0,0.01372]
[1758742683611,0.45413624,113370.0,113360.0,0.03485]
[1758742684008,0.80707741,113370.0,113360.0,0.03485]
[1758742684313,0.45413624,113370.0,113360.0,0.03485]
[1758742685013,0.45413624,113370.0,113360.0,0.03585]
[1758742686815,0.44510227,113370.0,113360.0,0.03585]
[1758742688113,0.45378902,113370.0,113360.0,0.03585]
[1758742688319,1.24294227,113370.0,113360.0,0.03585]
[1758742688613,1.24296988,113370.0,113360.0,0.03585]
[1758742690414,1.24296988,113370.0,113360.0,0.01472]
[1758742691412,1.25194831,113370.0,113360.0,0.01472]
[1758742691810,1.25194831,113370.0,113360.0,0.03585]
[1758742693113,1.25194831,113370.0,113360.0,0.01472]
[1758742693610,1.25194831,113370.0,113360.0,0.001]
[1758742693913,2.00491709,113370.0,113360.0,0.001]
[1758742694220,0.0881688,113360.0,113350.0,0.00810274]
[1758742694406,0.46140293,113360.0,113350.0,0.00810274]
[1758742694904,0.86140293,113360.0,113350.0,0.00810274]
[1758742695513,0.86240293,113360.0,113350.0,0.01110274]
[1758742695714,0.86240293,113360.0,113350.0,4e-08]
[1758742695909,0.86240293,113360.0,113350.0,0.00500004]
[1758742696307,0.86140293,113360.0,113350.0,0.005]
[1758742696507,0.0881766,113350.0,113340.0,0.01338]
[1758742696711,1.23902538,113350.0,113340.0,0.01338]
[1758742696915,1.23902538,113350.0,113340.0,0.03451]
[1758742698309,0.8870566,113350.0,113340.0,0.03551]
[1758742698510,1.24002538,113350.0,113340.0,0.03551]
[1758742701119,1.24010538,113350.0,113340.0,0.03551]
[1758742701712,1.24010538,113350.0,113340.0,0.03851]
[1758742702515,1.25510538,113350.0,113340.0,0.03851]
[1758742707226,0.9021366,113350.0,113340.0,0.03851]
[1758742707425,1.25510538,113350.0,113340.0,0.03851]
[1758742712534,0.9021366,113350.0,113340.0,0.03851]
[1758742712927,1.25510538,113350.0,113340.0,0.03851]
[1758742714132,1.25522538,113350.0,113340.0,0.03851]
[1758742726744,0.45714538,113350.0,113340.0,0.03851]
[1758742726946,1.25502538,113350.0,113340.0,0.03851]
[1758742734551,0.9020566,113350.0,113340.0,0.03851]
[1758742734854,1.25502538,113350.0,113340.0,0.03851]
[1758742735646,0.9020566,113350.0,113340.0,0.03851]
[1758742736152,0.45714538,113350.0,113340.0,0.03851]
[1758742736354,1.25506538,113350.0,113340.0,0.03851]
[1758742737151,0.9020966,113350.0,113340.0,0.96788939]
[1758742737859,0.8020966,113350.0,113340.0,0.96788939]
[1758742740358,0.8860566,113350.0,113340.0,0.96788939]
[1758742741756,0.0881763,113360.0,113350.0,0.1095666]
[1758742741961,0.8860563,113360.0,113350.0,0.47588538]
[1758742742252,0.8860563,113360.0,113350.0,0.38770878]
[1758742742458,0.8860563,113360.0,113350.0,0.21114281]
[1758742742459,0.0881763,113360.0,113350.0,0.21114281]
[1758742742758,0.8867363,113360.0,113350.0,0.21114281]
[1758742742960,0.91029691,113360.0,113350.0,0.21114281]
[1758742743158,1.26326569,113360.0,113350.0,0.12296621]
[1758742743657,1.26326569,113360.0,113350.0,0.12396621]
[1758742743858,1.26526569,113360.0,113350.0,0.12396621]
[1758742748761,1.61835583,113360.0,113350.0,0.12396621]
[1758742751168,1.61835583,113360.0,113350.0,0.47699567]
[1758742753164,1.59779522,113360.0,113350.0,0.47699567]
[1758742754368,1.24476576,113360.0,113350.0,0.47699567]
[1758742755864,1.24476576,113360.0,113350.0,0.56517227]
[1758742756264,0.44620576,113360.0,113350.0,0.56517227]
[1758742756459,1.24448576,113360.0,113350.0,0.56517227]
[1758742756662,0.44620576,113360.0,113350.0,0.47699567]
[1758742756864,1.24448576,113360.0,113350.0,0.12396621]
[1758742757164,1.24448576,113360.0,113350.0,0.47699567]
[1758742758665,1.24448576,113360.0,113350.0,0.56517227]
[1758742761466,0.8914563,113360.0,113350.0,0.56517227]
[1758742761654,1.24448576,113360.0,113350.0,0.56517227]
[1758742765468,1.24448576,113360.0,113350.0,0.21214281]
[1758742765669,1.24448576,113360.0,113350.0,0.47699567]
[1758742766671,1.24440576,113360.0,113350.0,0.47699567]
[1758742768778,1.24440576,113360.0,113350.0,0.56517227]
[1758742769777,0.8913763,113360.0,113350.0,0.56517227]